[Event "3rd BSSZ-Aranytiz IM 2019"]
[Site "Budapest"]
[Date "2019.08.25"]
[Round "9.3"]
[White "Nemeth, Zoltan"]
[Black "Persanyi, Barnabas"]
[Result "1-0"]
[ECO "C68"]
[WhiteElo "2275"]
[BlackElo "2399"]
[Annotator "ChessBase"]
[PlyCount "129"]
[EventDate "2019.08.16"]
[EventType "tourn"]
[EventCountry "HUN"]
[SourceTitle "playchess.com"]
[Source "ChessBase"]
[SourceQuality "1"]
[TimeControl "40/5400+30:1800+30"]

1. e4 {[%emt 0:00:21]} e5 {[%emt 0:01:02]} 2. Nf3 {[%emt 0:00:30]} Nc6 {[%emt 0:01:08]} 3. Bb5 {[%emt 0:01:15]} a6 {[%emt 0:00:43]} 4. Bxc6 {[%emt 0:01:57]} dxc6 {[%emt 0:00:18]} 5. O-O {[%emt 0:03:49]} Bg4 {[%emt 0:01:18]} 6. h3 {[%emt 0:02:54]} h5 {[%emt 0:00:46]} 7. c3 {[%emt 0:09:31]} Qf6 {[%emt 0:09:57]} 8. d4 {[%emt 0:01:26]} Bxf3 {[%emt 0:13:24]} 9. Qxf3 {[%emt 0:00:18]} Qxf3 {[%emt 0:01:15]} 10. gxf3 {[%emt 0:00:05]} exd4 {[%emt 0:00:45]} 11. cxd4 {[%emt 0:00:07]} O-O-O {[%emt 0:04:51]} 12. Be3 {[%emt 0:00:10]} Ne7 {[%emt 0:01:50]} 13. Rd1 {[%emt 0:02:09]} Ng6 {[%emt 0:01:56]} 14. Kf1 {[%emt 0:00:15]} Ne5 {[%emt 0:15:28]} 15. Nd2 {[%emt 0:00:20]} Ng6 {[%emt 0:03:31]} 16. Nb3 {[%emt 0:04:32]} Be7 {[%emt 0:01:10]} 17. Ke2 {[%emt 0:01:08]} Nf8 {[%emt 0:04:13]} 18. Rd2 {[%emt 0:03:24]} g6 {[%emt 0:02:42]} 19. Rc1 {[%emt 0:00:12]} Ne6 {[%emt 0:01:51]} 20. Nc5 {[%emt 0:07:24]} Bxc5 {[%emt 0:07:56]} 21. dxc5 {[%emt 0:00:10]} Rxd2+ {[%emt 0:00:17]} 22. Kxd2 {[%emt 0:00:25]} f5 {[%emt 0:06:10]} 23. exf5 {[%emt 0:01:45]} gxf5 {[%emt 0:00:08]} 24. f4 {[%emt 0:00:20]} Rg8 {[%emt 0:05:04]} 25. Ke2 {[%emt 0:00:46]} Kd7 {[%emt 0:00:51]} 26. Rd1+ {[%emt 0:01:57]} Ke7 {[%emt 0:01:07]} 27. b4 {[%emt 0:03:17]} a5 {[%emt 0:03:33]} 28. bxa5 {[%emt 0:08:29]} Ra8 {[%emt 0:00:13]} 29. Bd2 {[%emt 0:00:16]} Nxc5 {[%emt 0:03:34]} 30. Bb4 {[%emt 0:00:06]} b6 {[%emt 0:00:05]} 31. Rd3 {[%emt 0:02:23]} Ra6 {[%emt 0:03:07]} 32. Ra3 {[%emt 0:28:40]} Ke6 {[%emt 0:00:22]} 33. axb6 {[%emt 0:03:10]} Rxa3 {[%emt 0:00:07]} 34. Bxa3 {[%emt 0:00:07]} cxb6 {[%emt 0:00:30]} 35. Bxc5 {[%emt 0:00:38]} bxc5 {[%emt 0:00:04]} 36. Kd3 {[%emt 0:00:07]} Kd5 {[%emt 0:00:04]} 37. h4 {[%emt 0:00:12]} c4+ {[%emt 0:00:12]} 38. Kc3 {[%emt 0:00:05]} Kc5 {[%emt 0:00:15]} 39. a4 {[%emt 0:02:54]} Kd5 {[%emt 0:00:19]} 40. a5 {[%emt 0:00:00]} Kc5 {[%emt 0:00:00]} 41. a6 {[%emt 0:00:24]} Kb6 {[%emt 0:00:09]} 42. Kxc4 {[%emt 0:00:05]} Kxa6 {[%emt 0:00:06]} 43. Kc5 {[%emt 0:03:53]} Kb7 {[%emt 0:00:13]} 44. Kd6 {[%emt 0:00:05]} Kb6 {[%emt 0:00:14]} 45. Ke5 {[%emt 0:00:04]} Kc7 {[%emt 0:24:25]} 46. Kxf5 {[%emt 0:00:11]} Kd7 {[%emt 0:00:09]} 47. Kg6 {[%emt 0:02:53]} c5 {[%emt 0:00:14]} 48. f5 {[%emt 0:00:32]} c4 {[%emt 0:00:10]} 49. f6 {[%emt 0:00:07]} c3 {[%emt 0:00:04]} 50. f7 {[%emt 0:00:04]} c2 {[%emt 0:00:08]} 51. f8=Q {[%emt 0:00:03]} c1=Q {[%emt 0:00:07]} 52. Qf5+ {[%emt 0:00:31]} Kc7 {[%emt 0:01:36]} 53. Kxh5 {[%emt 0:00:48]} Qd1+ {[%emt 0:01:06]} 54. f3 {[%emt 0:00:06]} Kd6 {[%emt 0:01:18]} 55. Qf6+ {[%emt 0:00:28]} Kd7 {[%emt 0:00:15]} 56. Kh6 {[%emt 0:00:10]} Ke8 {[%emt 0:01:16]} 57. f4 {[%emt 0:00:41]} Qd2 {[%emt 0:01:03]} 58. h5 {[%emt 0:00:15]} Qc1 {[%emt 0:01:18]} 59. Qg5 {[%emt 0:02:23]} Kf8 {[%emt 0:00:38]} 60. f5 {[%emt 0:05:13]} Qb2 {[%emt 0:01:41]} 61. f6 {[%emt 0:01:10]} Qb7 {[%emt 0:01:44]} 62. Qe5 {[%emt 0:01:01]} Qd7 {[%emt 0:03:27]} 63. Qe7+ {[%emt 0:00:08]} Qxe7 {[%emt 0:00:05]} 64. fxe7+ {[%emt 0:00:06]} Kxe7 {[%emt 0:00:03]} 65. Kg7 {[%emt 0:00:06]} 1-0

[Event "3rd BSSZ-Aranytiz IM 2019"]
[Site "Budapest"]
[Date "2019.08.25"]
[Round "9.4"]
[White "Maerevoet, Sim"]
[Black "Hamblok, Roel"]
[Result "1-0"]
[ECO "D37"]
[WhiteElo "2321"]
[BlackElo "2261"]
[Annotator "NA"]
[PlyCount "75"]
[EventDate "2019.08.16"]
[EventType "tourn"]
[EventCountry "HUN"]
[SourceTitle "playchess.com"]
[Source "ChessBase"]
[SourceQuality "1"]
[TimeControl "40/5400+30:1800+30"]

1. d4 {[%emt 0:00:03]} d5 2. c4 {[%emt 0:00:00]} e6 {[%emt 0:00:22]} 3. Nc3 Be7 {[%emt 0:00:00]} 4. Nf3 {[%emt 0:00:57]} Nf6 5. Bf4 {[%emt 0:00:06]} O-O {[%emt 0:00:22]} 6. e3 {[%emt 0:00:00]} b6 {[%emt 0:00:07]} 7. Bd3 c5 {[%emt 0:02:36]} 8. cxd5 {[%emt 0:01:00]} Nxd5 {[%emt 0:00:50]} 9. Nxd5 {[%emt 0:00:12]} exd5 {[%emt 0:09:01]} 10. Ne5 {[%emt 0:00:49]} cxd4 {[%emt 0:02:49]} 11. exd4 {[%emt 0:00:24]} Bb4+ {[%emt 0:00:30]} 12. Kf1 {[%emt 0:00:30]} Ba6 {[%emt 0:00:30]} 13. Bxa6 {[%emt 0:00:30]} Nxa6 {[%emt 0:00:30]} 14. Qa4 {[%emt 0:00:30]} Qc8 {[%emt 0:19:16]} 15. Rc1 {[%emt 0:14:21]} Qb7 {[%emt 0:03:15]} 16. Nc6 {[%emt 0:01:32]} b5 {[%emt 0:00:52]} 17. Qb3 $16 {[%emt 0:15:06]} Be7 {[%emt 0:05:11]} 18. g3 {[%emt 0:01:48]} Rac8 {[%emt 0:01:47]} 19. Qxd5 {[%emt 0:09:26]} Rfd8 {[%emt 0:02:41]} 20. Qe4 {[%emt 0:05:11]} Bf6 {[%emt 0:01:13]} 21. d5 {[%emt 0:00:30]} Re8 {[%emt 0:02:29]} 22. Qf3 {[%emt 0:03:00]} Bxb2 {[%emt 0:00:25]} 23. Rc2 {[%emt 0:00:40]} Bf6 {[%emt 0:04:27]} 24. Kg2 {[%emt 0:05:00]} Qd7 {[%emt 0:00:30]} 25. Rhc1 h5 26. h4 {[%emt 0:02:45]} b4 {[%emt 0:04:48]} 27. d6 {[%emt 0:03:22]} Nb8 {[%emt 0:08:07]} 28. Nxb4 {[%emt 0:03:17]} Rxc2 {[%emt 0:01:10]} 29. Rxc2 {[%emt 0:00:43]} Qf5 {[%emt 0:01:57]} 30. Qd5 {[%emt 0:04:44]} Qxd5+ {[%emt 0:05:36]} 31. Nxd5 {[%emt 0:00:17]} Bd8 {[%emt 0:00:02]} 32. Rc8 {[%emt 0:01:59]} Nd7 {[%emt 0:00:14]} 33. Ra8 {[%emt 0:00:48]} Nb6 {[%emt 0:03:24]} 34. Nxb6 {[%emt 0:00:21]} axb6 {[%emt 0:00:05]} 35. d7 {[%emt 0:00:06]} Rf8 {[%emt 0:00:13]} 36. Bd6 {[%emt 0:00:04]} Be7 {[%emt 0:00:06]} 37. Rxf8+ {[%emt 0:00:09]} Kxf8 {[%emt 0:00:05]} 38. d8=R# {[%emt 0:00:05]} 1-0

[Event "3rd BSSZ-Aranytiz IM 2019"]
[Site "Budapest"]
[Date "2019.08.25"]
[Round "9.5"]
[White "Luong, Phuong Hanh"]
[Black "Urhegyi, Marton"]
[Result "1/2-1/2"]
[ECO "D11"]
[WhiteElo "2313"]
[BlackElo "2256"]
[Annotator "ChessBase"]
[PlyCount "122"]
[EventDate "2019.08.16"]
[EventType "tourn"]
[EventCountry "HUN"]
[SourceTitle "playchess.com"]
[Source "ChessBase"]
[SourceQuality "1"]
[TimeControl "40/5400+30:1800+30"]

1. d4 {[%emt 0:04:51]} d5 {[%emt 0:00:05]} 2. c4 {[%emt 0:00:17]} c6 {[%emt 0:00:04]} 3. Nf3 {[%emt 0:00:08]} Nf6 {[%emt 0:00:06]} 4. Qc2 {[%emt 0:00:07]} dxc4 {[%emt 0:00:32]} 5. Qxc4 {[%emt 0:00:05]} Bg4 {[%emt 0:00:26]} 6. Nc3 {[%emt 0:00:11]} Nbd7 {[%emt 0:00:41]} 7. e4 {[%emt 0:00:09]} e5 {[%emt 0:00:39]} 8. Be3 {[%emt 0:02:58]} Qa5 {[%emt 0:00:10]} 9. Nxe5 {[%emt 0:06:11]} Nxe5 {[%emt 0:01:01]} 10. dxe5 {[%emt 0:00:09]} Be6 {[%emt 0:00:15]} 11. Qd4 {[%emt 0:04:23]} Ng4 {[%emt 0:21:36]} 12. f4 {[%emt 0:08:07]} Bb4 {[%emt 0:22:27]} 13. a3 {[%emt 0:06:23]} Bxc3+ {[%emt 0:07:26]} 14. bxc3 {[%emt 0:00:17]} Rd8 {[%emt 0:01:00]} 15. Qc5 {[%emt 0:00:56]} Qa4 {[%emt 0:01:12]} 16. Be2 {[%emt 0:17:22]} b6 {[%emt 0:06:03]} 17. Qb4 {[%emt 0:00:17]} Qxb4 {[%emt 0:01:25]} 18. axb4 {[%emt 0:00:01]} Nxe3 {[%emt 0:00:08]} 19. Kf2 {[%emt 0:00:07]} Ng4+ {[%emt 0:02:08]} 20. Kg3 {[%emt 0:00:18]} Nh6 {[%emt 0:02:57]} 21. f5 {[%emt 0:02:10]} Bc8 {[%emt 0:02:20]} 22. Rxa7 {[%emt 0:00:39]} O-O {[%emt 0:11:32]} 23. Kf4 {[%emt 0:02:43]} Rd2 {[%emt 0:03:41]} 24. Bf3 {[%emt 0:01:36]} Rd3 {[%emt 0:01:07]} 25. Rc1 {[%emt 0:01:06]} f6 {[%emt 0:01:01]} 26. exf6 {[%emt 0:08:01]} gxf6 {[%emt 0:00:14]} 27. Be2 {[%emt 0:02:37]} Rd7 {[%emt 0:05:35]} 28. Bc4+ {[%emt 0:02:14]} Nf7 {[%emt 0:00:37]} 29. Rca1 {[%emt 0:03:53]} Rfd8 {[%emt 0:04:15]} 30. Be6 {[%emt 0:01:33]} Rxa7 {[%emt 0:01:15]} 31. Rxa7 {[%emt 0:00:08]} Bxe6 {[%emt 0:00:36]} 32. fxe6 {[%emt 0:00:02]} Ng5 {[%emt 0:01:39]} 33. Kf5 {[%emt 0:00:30]} Re8 {[%emt 0:00:37]} 34. e5 {[%emt 0:05:57]} Nxe6 {[%emt 0:00:15]} 35. exf6 {[%emt 0:00:12]} Nd8 {[%emt 0:00:28]} 36. Rg7+ {[%emt 0:02:18]} Kf8 {[%emt 0:00:46]} 37. Rxh7 {[%emt 0:00:09]} Nf7 {[%emt 0:00:08]} 38. h4 {[%emt 0:00:45]} Re2 {[%emt 0:01:55]} 39. g3 {[%emt 0:11:32]} Re3 {[%emt 0:00:19]} 40. Kf4 {[%emt 0:00:00]} Re6 {[%emt 0:00:00]} 41. Kf5 {[%emt 0:06:00]} Re3 {[%emt 0:01:51]} 42. Rg7 {[%emt 0:05:05]} Rf3+ {[%emt 0:07:38]} 43. Ke6 {[%emt 0:01:41]} Re3+ {[%emt 0:01:23]} 44. Kd7 {[%emt 0:04:15]} Rf3 {[%emt 0:00:29]} 45. Kc7 {[%emt 0:03:31]} Rxf6 {[%emt 0:00:26]} 46. Rg4 {[%emt 0:00:10]} b5 {[%emt 0:02:12]} 47. Rf4 {[%emt 0:00:25]} Re6 {[%emt 0:01:36]} 48. g4 {[%emt 0:01:12]} Kg7 {[%emt 0:02:46]} 49. g5 {[%emt 0:00:29]} Ne5 {[%emt 0:04:22]} 50. h5 {[%emt 0:01:10]} Nc4 {[%emt 0:01:46]} 51. Kd7 {[%emt 0:06:16]} Re5 {[%emt 0:05:05]} 52. h6+ {[%emt 0:00:21]} Kg8 {[%emt 0:02:01]} 53. g6 {[%emt 0:00:24]} Rh5 {[%emt 0:01:17]} 54. Kxc6 {[%emt 0:10:17]} Ne5+ {[%emt 0:00:15]} 55. Kb6 {[%emt 0:01:39]} Nxg6 {[%emt 0:01:00]} 56. Rf6 {[%emt 0:00:19]} Ne5 {[%emt 0:01:34]} 57. Ka6 {[%emt 0:01:03]} Nc4 {[%emt 0:00:39]} 58. Rc6 {[%emt 0:01:03]} Na3 {[%emt 0:00:40]} 59. Ka5 {[%emt 0:00:42]} Nc4+ {[%emt 0:02:15]} 60. Ka6 {[%emt 0:00:50]} Na3 {[%emt 0:00:18]} 61. Ka5 {[%emt 0:01:33]} Nc4+ {[%emt 0:00:05]} 1/2-1/2